fUST/lending_fUST_20251119
["ID","MTS","AMOUNT","RATE_DAILY","PERIOD"]
[394361133,1763493043770,-500.0,0.00017768,2]
[394361134,1763493043781,-300.0,0.00017768,2]
[394361135,1763493043792,-29512.27030608,0.00017769,2]
[394361136,1763493043807,-18209.0836389,0.00017769,2]
[394361137,1763493043827,-512.01,0.00017768,2]
[394361138,1763493043838,-587.99,0.00017769,2]
[394361139,1763493045618,5000.0,0.0001755,2]
[394361141,1763493046383,-512.01,0.00017768,2]
[394361142,1763493046394,-512.01,0.00017768,2]
[394361143,1763493046405,-512.01,0.00017768,2]
[394361144,1763493046416,-512.01,0.00017768,2]
[394361145,1763493046426,-512.01,0.00017768,2]
[394361146,1763493046437,-512.01,0.00017768,2]
[394361147,1763493046448,-512.01,0.00017768,2]
[394361148,1763493046459,-512.01,0.00017768,2]
[394361149,1763493046471,-512.01,0.00017768,2]
[394361150,1763493046581,-10221.75362956,0.00017769,2]
[394361151,1763493046596,-44866.4801394,0.00017769,2]
[394361152,1763493053654,5000.0,0.0001755,2]
[394361153,1763493070655,5000.0,0.0001755,2]
[394361154,1763493077272,208.57736393,0.00032,120]
[394361155,1763493078547,5000.0,0.0001755,2]
[394361156,1763493094753,5000.0,0.0001755,2]
[394361157,1763493102526,5000.0,0.0001755,2]
[394361158,1763493103758,181.272,0.00017414,2]
[394361159,1763493111346,165.804048,0.00017004,2]
[394361160,1763493118156,2600.0,0.0001755,2]
[394361161,1763493163155,5000.0,0.0001755,2]
[394361162,1763493190814,-300.0,0.00017767,2]
[394361163,1763493190839,-512.01,0.00017768,2]
[394361164,1763493190868,-512.01,0.00017768,2]
[394361165,1763493190894,-512.01,0.00017768,2]
[394361166,1763493190920,-512.01,0.00017768,2]
[394361167,1763493190948,-512.01,0.00017768,2]
[394361168,1763493190974,-512.09017571,0.00017768,2]
[394361169,1763493191001,-21627.85982429,0.00017769,2]
[394361170,1763493192557,-25000.0,0.00017769,2]
[394361171,1763493193334,-25000.0,0.00017769,2]
[394361172,1763493194145,-25000.0,0.00017769,2]
[394361173,1763493195002,-25000.0,0.00017769,2]
[394361174,1763493195762,-25000.0,0.00017769,2]
[394361175,1763493196498,-25000.0,0.00017769,2]
[394361176,1763493197273,-25000.0,0.00017769,2]
[394361177,1763493198126,-25000.0,0.00017769,2]
[394361178,1763493198883,-25000.0,0.00017769,2]
[394361179,1763493199769,-25000.0,0.00017769,2]
[394361180,1763493200733,-25000.0,0.00017769,2]
[394361181,1763493201776,-25000.0,0.00017769,2]
[394361182,1763493202833,-25000.0,0.00017769,2]
[394361183,1763493203778,-25000.0,0.00017769,2]
[394361184,1763493204738,-25000.0,0.00017769,2]
[394361185,1763493206048,-25000.0,0.00017769,2]
[394361186,1763493207108,-25000.0,0.00017769,2]
[394361187,1763493207888,-25000.0,0.00017769,2]
[394361188,1763493208895,-25000.0,0.00017769,2]
[394361189,1763493210171,-25000.0,0.00017769,2]
[394361190,1763493211456,-25000.0,0.00017769,2]
[394361191,1763493213144,-25000.0,0.00017769,2]
[394361192,1763493214259,-25000.0,0.00017769,2]
[394361193,1763493215350,-25000.0,0.00017769,2]
[394361194,1763493216672,-25000.0,0.00017769,2]
[394361195,1763493223720,410.38691213,0.00015777,2]
[394361196,1763493229401,5000.0,0.0001755,2]
[394361198,1763493236108,-25000.0,0.00017666,2]
[394361199,1763493237188,5000.0,0.0001755,2]
[394361200,1763493242294,1606.81,5e-05,2]
[394361201,1763493242581,1606.81,5.2e-05,2]
[394361202,1763493242903,1606.81,5.3e-05,2]
[394361203,1763493243186,1606.81,5.5e-05,2]
[394361204,1763493243517,1606.81,5.6e-05,2]
[394361205,1763493243740,1606.81,5.8e-05,2]
[394361206,1763493244120,1606.81,5.9e-05,2]
[394361207,1763493244449,1606.81,6.1e-05,2]
[394361208,1763493244724,1606.81,6.2e-05,2]
[394361209,1763493245039,1606.81,6.4e-05,2]
[394361210,1763493245327,1606.81,6.5e-05,2]
[394361211,1763493245598,1606.81,6.7e-05,2]
[394361212,1763493245893,1606.81,6.8e-05,2]
[394361213,1763493246044,5000.0,0.0001755,2]
[394361214,1763493246179,1606.81,7e-05,2]
[394361215,1763493246436,1606.81,7.1e-05,2]
[394361216,1763493246777,1606.81,7.3e-05,2]
[394361217,1763493247053,1606.81,7.4e-05,2]
[394361218,1763493247324,1606.81,7.6e-05,2]
[394361219,1763493247603,1606.81,7.7e-05,2]
[394361220,1763493247868,1606.81,7.9e-05,2]
[394361221,1763493248142,1606.81,8e-05,2]
[394361222,1763493248409,1606.81,8.2e-05,2]
[394361223,1763493248688,1606.81,8.3e-05,2]
[394361224,1763493248969,1606.81,8.5e-05,2]
[394361225,1763493249241,1606.81,8.7e-05,2]
[394361226,1763493249536,71.20537695,8.8e-05,2]
[394361227,1763493249565,1535.60462305,8.8e-05,2]
[394361228,1763493249982,1606.81,9e-05,2]
[394361229,1763493250285,1606.81,9.1e-05,2]
[394361230,1763493250581,1606.81,9.3e-05,2]
[394361231,1763493250886,1606.81,9.4e-05,2]
[394361232,1763493251858,1606.81,9.6e-05,2]
[394361233,1763493252220,1606.81,9.7e-05,2]
[394361234,1763493252500,1606.81,9.9e-05,2]
[394361235,1763493252777,1606.81,0.0001,2]
[394361236,1763493253159,1606.81,0.000102,2]
[394361237,1763493253333,1606.81,0.000103,2]
[394361238,1763493253610,1606.81,0.000105,2]
[394361239,1763493253898,359.15,0.00017502,2]
[394361240,1763493253924,4640.85,0.00017502,2]
[394361241,1763493254079,1606.81,0.000106,2]
[394361242,1763493254344,1606.81,0.000108,2]
[394361243,1763493254632,1606.81,0.000109,2]
[394361244,1763493254934,538.73,0.000111,2]
[394361245,1763493254960,1068.08,0.000111,2]
[394361246,1763493255827,1606.81,0.000112,2]
[394361247,1763493256147,1606.81,0.000114,2]
[394361248,1763493256214,154.57934684,0.00015777,2]
[394361249,1763493256434,1606.81,0.000115,2]
[394361250,1763493256715,1606.81,0.000117,2]
[394361251,1763493256988,1606.81,0.000118,2]
[394361252,1763493257332,1606.81,0.00012,2]
[394361253,1763493257658,1606.81,0.000121,2]
[394361254,1763493257936,1606.81,0.000123,2]
[394361255,1763493258260,1606.81,0.000125,2]
[394361256,1763493262504,5000.0,0.00017545,2]
[394361257,1763493270820,3478.63650436,0.00017502,2]
[394361258,1763493279279,5000.0,0.00017502,2]
[394361259,1763493287095,5000.0,0.00017502,2]
[394361260,1763493301548,358.32,5e-05,2]
[394361261,1763493301822,358.32,5.2e-05,2]
[394361262,1763493302187,358.32,5.3e-05,2]
[394361263,1763493302471,358.32,5.5e-05,2]
[394361264,1763493303077,5000.0,0.00017502,2]
[394361265,1763493303393,358.32,5.6e-05,2]
[394361266,1763493303729,358.32,5.8e-05,2]
[394361267,1763493304031,358.32,5.9e-05,2]
[394361268,1763493304325,358.32,6.1e-05,2]
[394361269,1763493304631,358.32,6.2e-05,2]
[394361270,1763493304946,358.32,6.4e-05,2]
[394361271,1763493305222,358.32,6.5e-05,2]
[394361272,1763493305548,358.32,6.7e-05,2]
[394361273,1763493305872,358.32,6.8e-05,2]
[394361274,1763493306158,358.32,7e-05,2]
[394361275,1763493306639,358.32,7.1e-05,2]
[394361276,1763493306931,358.32,7.3e-05,2]
[394361277,1763493307235,358.32,7.4e-05,2]
[394361278,1763493307836,358.32,7.6e-05,2]
[394361279,1763493308122,356.68555753,0.00017466,2]
[394361280,1763493308776,358.32,7.7e-05,2]
[394361281,1763493309151,358.32,7.9e-05,2]
[394361282,1763493309466,358.32,8e-05,2]
[394361283,1763493309742,358.32,8.2e-05,2]
[394361284,1763493310041,358.32,8.3e-05,2]
[394361285,1763493310372,358.32,8.5e-05,2]
[394361286,1763493310684,358.32,8.7e-05,2]
[394361287,1763493310999,358.32,8.8e-05,2]
[394361288,1763493311289,358.32,9e-05,2]
[394361289,1763493311386,5000.0,0.00017502,2]
[394361290,1763493311562,358.32,9.1e-05,2]
[394361291,1763493311874,358.32,9.3e-05,2]
[394361292,1763493312156,358.32,9.4e-05,2]
[394361293,1763493312431,358.32,9.6e-05,2]
[394361294,1763493312713,358.32,9.7e-05,2]
[394361295,1763493313036,358.32,9.9e-05,2]
[394361296,1763493313316,358.32,0.0001,2]
[394361297,1763493314269,358.32,0.000102,2]
[394361298,1763493314672,358.32,0.000103,2]
[394361299,1763493314951,358.32,0.000105,2]
[394361300,1763493315289,358.32,0.000106,2]
[394361301,1763493315567,358.32,0.000108,2]
[394361302,1763493315859,358.32,0.000109,2]
[394361303,1763493316203,358.32,0.000111,2]
[394361304,1763493316525,358.32,0.000112,2]
[394361305,1763493316827,358.32,0.000114,2]
[394361306,1763493317117,358.32,0.000115,2]
[394361307,1763493317478,358.32,0.000117,2]
[394361308,1763493317806,358.32,0.000118,2]
[394361309,1763493318095,358.32,0.00012,2]
[394361310,1763493318377,358.32,0.000121,2]
[394361311,1763493318684,358.32,0.000123,2]
[394361312,1763493318995,358.32,0.000125,2]
[394361313,1763493326602,5000.0,0.00017502,2]
[394361314,1763493334409,5000.0,0.00017502,2]
[394361315,1763493350231,5000.0,0.00017502,2]
[394361316,1763493358566,5000.0,0.00017502,2]
[394361317,1763493374218,5000.0,0.00017502,2]
[394361318,1763493382520,5000.0,0.00017502,2]
[394361319,1763493393015,208.57736392,0.00032,120]
[394361320,1763493397770,5000.0,0.00017502,2]
[394361322,1763493405954,5000.0,0.00017502,2]
[394361323,1763493421707,331.51,5e-05,2]
[394361324,1763493421735,5000.0,0.00017502,2]
[394361325,1763493421982,331.51,5.2e-05,2]
[394361326,1763493422335,331.51,5.3e-05,2]
[394361327,1763493422702,331.51,5.5e-05,2]
[394361328,1763493422992,331.51,5.6e-05,2]
[394361329,1763493423271,331.51,5.8e-05,2]
[394361330,1763493423630,331.51,5.9e-05,2]
[394361331,1763493423932,331.51,6.1e-05,2]
[394361332,1763493424242,331.51,6.2e-05,2]
[394361333,1763493424560,331.51,6.4e-05,2]
[394361334,1763493424865,331.51,6.5e-05,2]
[394361335,1763493425200,331.51,6.7e-05,2]
[394361336,1763493425533,331.51,6.8e-05,2]
[394361337,1763493425853,331.51,7e-05,2]
[394361338,1763493426201,331.51,7.1e-05,2]
[394361339,1763493426518,331.51,7.3e-05,2]
[394361340,1763493426845,331.51,7.4e-05,2]
[394361341,1763493427132,331.51,7.6e-05,2]
[394361342,1763493427418,331.51,7.7e-05,2]
[394361343,1763493427715,331.51,7.9e-05,2]
[394361344,1763493427995,331.51,8e-05,2]
[394361345,1763493428353,331.51,8.2e-05,2]
[394361346,1763493428647,331.51,8.3e-05,2]
[394361347,1763493429567,331.51,8.5e-05,2]
[394361348,1763493429967,331.51,8.7e-05,2]
[394361349,1763493430028,4037.4412307,0.00017502,2]
[394361350,1763493430240,331.51,8.8e-05,2]
[394361351,1763493430521,331.51,9e-05,2]
[394361352,1763493430941,331.51,9.1e-05,2]
[394361353,1763493431276,331.51,9.3e-05,2]
[394361354,1763493431559,331.51,9.4e-05,2]
[394361355,1763493431842,331.51,9.6e-05,2]
[394361356,1763493432126,331.51,9.7e-05,2]
[394361357,1763493432407,331.51,9.9e-05,2]
[394361358,1763493432675,331.51,0.0001,2]
[394361359,1763493433007,331.51,0.000102,2]
[394361360,1763493433287,331.51,0.000103,2]
[394361361,1763493433561,331.51,0.000105,2]
[394361362,1763493433876,331.51,0.000106,2]
[394361363,1763493434162,331.51,0.000108,2]
[394361364,1763493434433,331.51,0.000109,2]
[394361365,1763493434720,331.51,0.000111,2]
[394361366,1763493435009,331.51,0.000112,2]
[394361367,1763493435281,331.51,0.000114,2]
[394361368,1763493435700,331.51,0.000115,2]
[394361369,1763493436600,331.51,0.000117,2]
[394361370,1763493436916,331.51,0.000118,2]
[394361371,1763493437218,331.51,0.00012,2]
[394361372,1763493437500,331.51,0.000121,2]
[394361373,1763493437776,331.51,0.000123,2]
[394361374,1763493445254,5000.0,0.00017502,2]
[394361375,1763493464602,1846.5767439,0.00017293,2]
[394361376,1763493466159,163.0,1.09e-06,2]
[394361377,1763493468543,5000.0,0.00017502,2]
[394361378,1763493481741,165.66,5e-05,2]
[394361379,1763493491332,5000.0,0.00017502,2]
[394361398,1763493514142,5000.0,0.00017502,2]
[394361399,1763493537534,5000.0,0.00017502,2]
[394361400,1763493560389,5000.0,0.00017502,2]
[394361401,1763493583796,5000.0,0.00017502,2]
[394361402,1763493599263,620.70356242,0.00015777,2]
[394361403,1763493603178,1187.2539263,0.00032877,120]
[394361405,1763493606070,5000.0,0.00017502,2]
[394361406,1763493607823,692.50608676,0.00017293,2]
[394361407,1763493621731,-669.75774501,0.00017563,2]
[394361408,1763493625453,-189.39120443,0.00017563,2]
[394361409,1763493627003,-247.09279327,0.00017563,2]
[394361410,1763493628448,-274.44696721,0.00017563,2]
[394361411,1763493629439,1028.12192985,0.00017502,2]
[394361412,1763493630517,-306.02482211,0.00017563,2]
[394361413,1763493632025,-389.74954484,0.00017563,2]
[394361414,1763493634589,-161.45121328,0.00017563,2]
[394361415,1763493637261,1406.70533189,0.00017502,2]
[394361416,1763493637964,-184.130986,0.00017563,2]
[394361417,1763493639415,-412.51797887,0.00017563,2]
[394361418,1763493639438,-57.05003299,0.00017565,2]
[394361419,1763493642057,-92.94996701,0.00017565,2]
[394361420,1763493642081,-169.11842653,0.00017566,2]
[394361421,1763493644343,-50.69642557,0.00017566,2]
[394361422,1763493644366,-119.84798282,0.00017655,2]
[394361423,1763493647004,-259.2295785,0.00017655,2]
[394361424,1763493648495,-480.89691765,0.00017655,2]
[394361425,1763493651087,-293.64062628,0.00017655,2]
[394361426,1763493654454,-46.38489475,0.00017655,2]
[394361427,1763493654477,-151.0,0.00017655,2]
[394361428,1763493654498,-113.88426667,0.00017655,2]
[394361429,1763493656739,-41.8151766,0.00017655,2]
[394361430,1763493656761,-142.83364738,0.00017656,3]
[394361431,1763493658720,-249.28047151,0.00017656,3]
[394361432,1763493660594,1506.99259157,0.00017502,2]
[394361433,1763493661136,-274.57588111,0.00017656,3]
[394361434,1763493661159,-25.42411889,0.00017656,3]
[394361435,1763493663697,-230.83675562,0.00017656,3]
[394361436,1763493665214,-77.07912549,0.00017656,3]
[394361437,1763493665237,-166.67,0.00017656,3]
[394361438,1763493665260,-110.37534633,0.00017656,3]
[394361439,1763493667334,-333.36939357,0.00017656,3]
[394361440,1763493669001,584.96122744,0.00017502,2]
[394361441,1763493669787,-56.2952601,0.00017656,3]
[394361442,1763493669808,-215.67774804,0.00017661,2]
[394361443,1763493672059,-84.32225196,0.00017661,2]
[394361444,1763493672083,-167.40675841,0.00017661,2]
[394361445,1763493674143,-132.59324159,0.00017661,2]
[394361446,1763493674167,-83.33547448,0.00017661,2]
[394361447,1763493676968,-168.0341074,0.00017661,2]
[394361448,1763493678533,-48.63041812,0.00017661,2]
[394361449,1763493678555,-242.73639536,0.00017662,2]
[394361450,1763493681129,-168.69568844,0.00017662,2]
[394361451,1763493683763,-88.5679162,0.00017662,2]
[394361452,1763493683786,-108.82757322,0.00017662,2]
[394361453,1763493685241,-210.55590752,0.00017662,2]
[394361454,1763493687421,-180.61651926,0.00017662,2]
[394361455,1763493687447,-116.28730884,0.00017662,2]
[394361456,1763493691152,-383.71269116,0.00017662,2]
[394361457,1763493691180,-46.90837673,0.00017662,2]
[394361458,1763493691499,2405.95196251,0.00017502,2]
[394361459,1763493694495,-453.09162327,0.00017662,2]
[394361460,1763493694520,-144.97875167,0.00017662,2]
[394361461,1763493696656,-215.04014986,0.00017662,2]
[394361462,1763493698331,-139.98109847,0.00017662,2]
[394361463,1763493698354,-14.17224429,0.00017662,2]
[394361464,1763493700460,-160.43527447,0.00017662,2]
[394361465,1763493702622,-186.06169872,0.00017662,2]
[394361466,1763493703789,205.227,0.00017313,2]
[394361467,1763493704123,-139.33078252,0.00017662,2]
[394361468,1763493704152,-241.88303702,0.00017662,2]
[394361469,1763493706783,-258.11696298,0.00017662,2]
[394361470,1763493706808,-52.30137349,0.00017662,2]
[394361471,1763493706949,3449.0657067,0.00016665,2]
[394361472,1763493709769,-283.17773406,0.00017662,2]
[394361473,1763493711350,-164.52089245,0.00017662,2]
[394361474,1763493711373,-88.83329026,0.00017662,2]
[394361475,1763493713937,1744.38190864,0.00017502,2]
[394361476,1763493714211,-411.16670974,0.00017662,2]
[394361477,1763493714234,-5.15650352,0.00017662,2]
[394361478,1763493716821,-154.84721429,0.00017662,2]
[394361479,1763493718660,-339.99628219,0.00017662,2]
[394361480,1763493718685,-73.16521176,0.00017662,2]
[394361481,1763493720580,-181.88495492,0.00017662,2]
[394361482,1763493722167,-160.43527447,0.00017662,2]
[394361483,1763493726542,-300.0,0.00017661,2]
[394361484,1763493726570,-5.28812451,0.00017662,2]
[394361485,1763493728566,-79.22643434,0.00017662,2]
[394361486,1763493728590,-500.0,0.00017662,2]
[394361487,1763493728612,-152.45002919,0.00017662,2]
[394361488,1763493730645,796.05540471,0.00017502,2]
[394361489,1763493733175,-206.73428585,0.00017662,2]
[394361490,1763493734728,-140.81568496,0.00017662,2]
[394361491,1763493734752,-318.79455299,0.00017662,2]
[394361492,1763493737978,-181.20544701,0.00017662,2]
[394361493,1763493738002,-381.9042425,0.00017662,2]
[394361494,1763493738029,-62.33808598,0.00017662,2]
[394361495,1763493740997,-242.47836676,0.00017551,2]
[394361496,1763493745476,-219.26868526,0.00017551,2]
[394361497,1763493749550,-300.0,0.00017551,2]
[394361498,1763493751593,-300.0,0.00017551,2]
[394361499,1763493753043,2485.21581484,0.00017541,2]
[394361500,1763493754604,-217.62386043,0.00017551,2]
[394361501,1763493759936,336.08684688,0.00039878,20]
[394361502,1763493760120,-227.30974065,0.00017551,2]
[394361503,1763493760814,817.62386043,0.00017541,2]
[394361504,1763493761639,-382.90734105,0.00017551,2]
[394361505,1763493763102,-172.12249522,0.00017551,2]
[394361506,1763493764341,207.6114549,0.00017293,2]
[394361507,1763493765798,-189.5821077,0.00017551,2]
[394361508,1763493765820,-7.70264874,0.00017662,2]
[394361509,1763493768455,-248.72522566,0.00017661,2]
[394361510,1763493768871,5000.0,0.00017541,2]
[394361511,1763493768977,151.5794135,0.00016975,2]
[394361512,1763493771099,272.84294431,0.00016975,2]
[394361513,1763493771188,-392.70515437,0.00017661,2]
[394361514,1763493772663,-494.65048411,0.00017661,2]
[394361515,1763493775404,-63.91913586,0.00017661,2]
[394361516,1763493775433,-214.01584474,0.00017662,2]
[394361517,1763493777584,494.65048411,0.00017502,2]
[394361518,1763493777612,-255.8699612,0.00017662,2]
[394361519,1763493781869,-1205.77070599,0.00017662,2]
[394361520,1763493784505,-300.0,0.00017661,2]
[394361521,1763493784528,-125.35151863,0.00017662,2]
[394361522,1763493785639,1228.34955902,0.00017502,2]
[394361523,1763493789431,-206.48039651,0.00017662,2]
[394361524,1763493791368,-211.8912201,0.00017662,2]
[394361525,1763493793490,5000.0,0.00017502,2]
[394361526,1763493793868,-194.47980349,0.00017662,2]
[394361527,1763493797028,-241.33147702,0.00017662,2]
[394361528,1763493800997,-780.36190651,0.0001764,2]
[394361529,1763493801666,1837.60262113,0.00017502,2]
[394361530,1763493804086,-194.47980349,0.0001764,2]
[394361531,1763493805718,-232.54662012,0.0001764,2]
[394361532,1763493807223,-168.06380642,0.0001764,2]
[394361533,1763493810014,-234.03190321,0.0001764,2]
[394361534,1763493811335,-1903.62025938,0.0001764,2]
[394361535,1763493814981,-300.0,0.0001764,2]
[394361536,1763493817833,5000.0,0.00017502,2]
[394361537,1763493819610,-368.04522985,0.0001764,2]
[394361538,1763493822205,-387.51183085,0.0001764,2]
[394361539,1763493824290,-356.96282307,0.0001764,2]
[394361540,1763493826312,-531.26706152,0.0001764,2]
[394361541,1763493829992,-351.01278781,0.0001764,2]
[394361542,1763493834749,-800.00173212,0.0001764,2]
[394361543,1763493837403,-189.0370999,0.0001764,2]
[394361544,1763493840085,-159.77523542,0.00017589,2]
[394361545,1763493840192,2790.99148216,0.00017502,2]
[394361546,1763493845009,-20.79490963,0.00017589,2]
[394361547,1763493845033,-300.0,0.00017639,2]
[394361548,1763493845060,-421.03950437,0.0001764,2]
[394361549,1763493846552,-371.20125975,0.0001764,2]
[394361550,1763493848048,-157.78090848,0.0001764,2]
[394361551,1763493849484,-216.96010571,0.0001754,2]
[394361552,1763493853100,-151.51062978,0.0001754,2]
[394361553,1763493855660,-152.88862893,0.0001754,2]
[394361554,1763493857258,-223.95263173,0.0001754,2]
[394361555,1763493860483,-354.67857351,0.0001754,2]
[394361556,1763493862380,-307.09728476,0.0001754,2]
[394361557,1763493863459,1000.0,0.00016664,2]
[394361558,1763493863888,-936.95095493,0.0001754,2]
[394361559,1763493870005,-112.8773983,0.0001754,2]
[394361560,1763493870028,-186.77430384,0.00017562,2]
[394361561,1763493872261,-263.39734293,0.00017562,2]
[394361562,1763493874174,-1200.0,0.00017562,2]
[394361563,1763493876870,5000.0,0.00017502,2]
[394361564,1763493878226,-171.83081564,0.00017562,2]
[394361565,1763493880387,-200.2,0.00017562,2]
[394361566,1763493884659,5000.0,0.00017502,2]
[394361567,1763493884756,-160.51832996,0.00017562,2]
[394361568,1763493889168,-297.52205579,0.00017562,2]
[394361569,1763493889190,-114.48999341,0.00017619,2]
[394361570,1763493892808,5000.0,0.00017502,2]
[394361571,1763493901225,5000.0,0.00017502,2]
[394361572,1763493904293,232.09248763,0.00039884,120]
[394361573,1763493909798,5000.0,0.00017502,2]
[394361574,1763493917625,5000.0,0.00017502,2]
[394361575,1763493923645,4536.5368133,0.00016663,2]
[394361576,1763493925607,5000.0,0.00017502,2]
[394361577,1763493925908,634.948421,0.00013699,2]
[394361579,1763493933436,5000.0,0.00017502,2]
[394361580,1763493941470,5000.0,0.00017502,2]
[394361581,1763493949924,5000.0,0.00017502,2]
[394361582,1763493958976,5000.0,0.00017502,2]
[394361583,1763493963886,1003.94715438,0.00039884,120]
[394361584,1763493967383,5000.0,0.00017502,2]
[394361585,1763493975883,5000.0,0.00017502,2]
[394361586,1763493978976,-293.63973979,0.00017619,2]
[394361587,1763493979002,-124.78137005,0.00017629,2]
[394361588,1763493983860,5000.0,0.0001755,2]
[394361589,1763493991878,5000.0,0.0001755,2]
[394361590,1763493999769,1457.64688598,0.0001755,2]
[394361591,1763494007710,5000.0,0.0001755,2]
[394361594,1763494016456,5000.0,0.0001755,2]
[394361595,1763494031665,5000.0,0.0001755,2]
[394361596,1763494039235,908.20683128,0.00039884,30]
[394361597,1763494040493,2607.58157676,0.0001755,2]
[394361598,1763494045512,223469.47123032,0.00039884,20]
[394361601,1763494056195,5000.0,0.0001755,2]
[394361603,1763494066085,10000.0,0.00039884,20]
[394361604,1763494068222,289.11619511,0.00017293,2]
[394361605,1763494070964,166.94591465,0.00039884,20]
[394361606,1763494073968,272.73040398,0.00016901,2]
[394361608,1763494076593,490.91472717,0.00016901,2]
[394361609,1763494079657,5000.0,0.0001755,2]
[394361611,1763494091231,1824.88036008,0.000125,2]
[394361612,1763494100190,939.52700932,0.00039884,120]
[394361613,1763494100611,999.999984,0.00039884,120]
[394361615,1763494102117,5000.0,0.0001755,2]
[394361616,1763494102987,919.30835133,0.00039884,60]
[394361617,1763494104968,875.48589949,0.00039884,120]
[394361618,1763494105976,172.75002543,0.00039884,30]
[394361619,1763494106012,715.81120748,0.00039884,120]
[394361620,1763494107188,1091.7728408,0.00039884,60]
[394361621,1763494108163,162.56332371,0.00039884,30]
[394361622,1763494109202,2259.49208828,0.00039884,120]
[394361623,1763494109646,48057.12985092,0.00017,2]
[394361624,1763494109671,6655.44440141,0.00017,2]
[394361625,1763494110585,170.64006445,0.00039884,120]
[394361626,1763494111619,500.25258535,0.00039884,120]
[394361628,1763494114044,154.96132172,0.00039884,30]
[394361630,1763494114142,307.68047152,0.00019,10]
[394361631,1763494116696,1039.97613925,0.00039884,120]
[394361632,1763494116736,150.99999926,0.0002,120]
[394361633,1763494117198,1032.16484018,0.00039884,120]
[394361635,1763494118192,1161.89273897,0.00039884,60]
[394361636,1763494118355,173.84228099,0.00039884,60]
[394361637,1763494120049,1046.47459591,0.00039884,120]
[394361638,1763494121090,773.97999907,0.00039884,120]
[394361639,1763494121133,666.07804714,0.00039884,120]
[394361640,1763494122391,2380.82363131,0.0001,2]
[394361641,1763494122899,1029.01678987,0.00039882,120]
[394361642,1763494123239,875.80562982,0.00039882,60]
[394361643,1763494123497,1021.28343801,0.00039882,60]
[394361644,1763494124950,5000.0,0.00017502,2]
[394361645,1763494125405,507.30324098,0.00039882,30]
[394361646,1763494125499,385.48682335,0.00039882,120]
[394361647,1763494147862,5000.0,0.00017502,2]
[394361653,1763494160294,10000.0,0.00039882,20]
[394361654,1763494171102,5000.0,0.00017502,2]
[394361655,1763494193287,2287.86596197,0.00017502,2]
[394361656,1763494231325,2251.29259707,0.00017465,2]
[394361840,1763494238256,-361.7850497,0.0001754,2]
[394361869,1763494241454,-5425.26636607,0.0001754,2]
[394361870,1763494241466,-112351.45428714,0.0001754,2]
[394361871,1763494242803,-3e-08,0.0001754,2]
[394361872,1763494242822,-500.0,0.0001754,2]
[394361873,1763494242837,-675.37802079,0.0001754,2]
[394361874,1763494242935,-1137.4420691,0.0001754,2]
[394361879,1763494243721,-2249.95541138,0.0001754,2]
[394361883,1763494244179,-1808.82995906,0.0001754,2]
[394361884,1763494244198,-4470.52434154,0.0001754,2]
[394361885,1763494244261,-1052.6703719,0.0001754,2]
[394361886,1763494245022,-447.15275416,0.0001754,2]
[394361887,1763494245256,5000.0,0.00017502,2]
[394361889,1763494249552,-274.60761404,0.0001754,2]
[394361890,1763494251174,-1048.25041885,0.0001754,2]